Cogmind - Beta 16.1 @@@ ROGUE MODE // 2026.04.18 @ 14:57:37 Player: f3-rnm Result: Destroyed by DAS Turret with DAS Cannon Performance ------------- Evolutions (1) 500 Regions Visited (5) 1000 Robots Destroyed (38) 190 Value Destroyed (840) 840 Prototype IDs (24) 480 Alien Tech Used (0) 0 Bonus (333) 333 TOTAL SCORE: 3343 Bonus ------- Follower Combat Kills 33 Aligned with FarCom 300 Cogmind --------- Core Integrity 0/400 Matter 36/300 Energy 57/100 System Corruption 5% Temperature Cool (17) Movement Treading (320) Ox2 Location -9/Exiles Parts ------- > --- POWER (1) -------- (None) > --- PROPULSION (3) --- Light Treads Airjet > --- UTILITY (3) ------ High-capacity Storage Unit > --- WEAPON (2) ------- Spread Laser Enhanced Autogun > --- INVENTORY (20) --- Wheel Airjet Large Storage Unit High-capacity Matter Pod (0) Hacking Suite Hacking Suite Heavy Assault Rifle Enhanced Autogun Enhanced Autogun Rocket Launcher Peak State ------------ > --- POWER ------------ Light Ion Engine > --- PROPULSION ------- Improved Treads Improved Treads Improved Treads > --- UTILITY ---------- Improved Heat Sink High-capacity Storage Unit Improved Targeting Computer > --- WEAPON ----------- Spread Laser Enhanced Autogun > --- INVENTORY -------- Light Ion Engine Light Treads Improved Treads Improved Treads Improved Treads Improved Treads Improved Treads Improved Treads Aluminum Leg Aluminum Leg Wheel Heat Sink Medium Storage Unit Large Storage Unit Light Armor Plating Enhanced Autogun Enhanced Autogun Rocket Launcher [Rating: 22] Favorites ----------- Power Light Ion Engine Engine Light Ion Engine Power Core Light Nuclear Core Propulsion Improved Treads Treads Improved Treads Wheel Compact Wheel Hover Unit Airjet Utility Improved Heat Sink Device Improved Heat Sink Storage High-capacity Storage Unit Processor Improved Targeting Computer Protection Light Armor Plating Weapon Spread Laser Energy Gun Spread Laser Ballistic Gun Enhanced Autogun Launcher Rocket Launcher Build | -11 -10 -10 -9 -9 -9 ------- Run | Yrd Mat Min Mat Min Exi Slots Evolved 2 | . . . 2 . . Power . | . . . . . . Propulsion 1 | . . . 1 . . Utility 1 | . . . 1 . . Weapon . | . . . . . . Parts Attached 36 | 6 5 4 12 . 9 Power 5 | 1 2 1 1 . . Engine 4 | 1 2 . 1 . . Core 1 | . . 1 . . . Reactor . | . . . . . . Propulsion 16 | 2 . 2 6 . 6 Treads 13 | 2 . . 6 . 5 Leg . | . . . . . . Wheel 2 | . . 2 . . . Hover 1 | . . . . . 1 Flight . | . . . . . . Utility 5 | 1 2 . 1 . 1 Device 1 | . 1 . . . . Storage 2 | 1 1 . . . . Processor 1 | . . . 1 . . Hackware . | . . . . . . Protection 1 | . . . . . 1 Artifact . | . . . . . . Weapon 10 | 2 1 1 4 . 2 Energy Gun 6 | 2 1 . 3 . . Energy Cannon . | . . . . . . Ballistic Gun 3 | . . . 1 . 2 Ballistic Cannon . | . . . . . . Launcher 1 | . . 1 . . . Special Weapon . | . . . . . . Impact Weapon . | . . . . . . Slashing Weapon . | . . . . . . Piercing Weapon . | . . . . . . Special Melee Weapon . | . . . . . . Unidentified Prototypes 1 | . . . 1 . . Parts Lost 21 | . 2 3 4 . 12 Power 4 | . 1 1 1 . 1 Propulsion 10 | . 1 1 1 . 7 Utility 3 | . . . . . 3 Weapon 4 | . . 1 2 . 1 Highest Loss Streak 5 | . 1 2 2 . 5 To Critical Strikes 4 | . . . . . 4 Average Backups 10 | 1 5 5 15 20 17 Power 1 | . 2 2 1 1 1 Propulsion 4 | . 1 . 7 10 7 Utility 2 | . 1 2 3 4 4 Weapon 2 | . 1 . 3 5 4 Tool/Special . | . . . . . . Unused Backups 16 | . . . 4 . 12 Power 2 | . . . . . 2 Propulsion 6 | . . . 2 . 4 Utility 7 | . . . 2 . 5 Weapon 1 | . . . . . 1 Tool/Special . | . . . . . . Average Slot Usage (%) 90 | . 84 92 90 100 90 Engine 8 | . 13 4 9 11 8 Core 1 | . . 4 1 . . Treads 21 | . 16 14 26 33 31 Wheel 4 | . . 12 2 . . Device 11 | . 11 14 11 11 7 Storage 12 | . 14 14 11 11 11 Processor 4 | . . . 10 11 7 Energy Gun 21 | . 28 24 16 22 16 Ballistic Gun 1 | . . . . . 4 Launcher 1 | . . 3 . . . Peak Build Rating 22 | 6 8 12 22 21 22 Average Rating 13 | 5 7 9 17 21 19 On Entrance 11 | . 6 8 11 21 21 Avg Prop Armor Cover (%) 12 | . . 12 9 . . Naked Turns . | . . . . . . Heaviest Build 51 | 12 47 51 51 50 51 Greatest Support 69 | 40 40 20 69 69 69 Greatest Overweight (x) 4 | . 2 4 3 . . Average Overweight (x) . | . . 2 . . . Largest Inventory Capacity 20 | 8 20 20 20 20 20 Average Capacity 18 | 7 11 20 20 20 20 Most Carried 20 | 3 6 6 20 20 20 Average Carried 10 | 1 5 5 15 20 17 Final Capacity 20 | 8 20 20 20 20 20 Final Carried 20 | 3 6 6 20 20 10 Class Distribution -------------------- 100% | Mutant Dominant Class ---------------- Mutant | -10/Materials Mutant | -10/Mines Mutant | -9/Materials Mutant | -9/Mines Mutant | -9/Exiles Resources | -11 -10 -10 -9 -9 -9 ----------- Run | Yrd Mat Min Mat Min Exi Matter Collected 979 | 226 64 138 259 . 292 Remotely . | . . . . . . Salvage Created 1098 | . 222 264 551 . 61 Parts 65 | . 10 11 44 . . Haulers Intercepted 1 | . . . 1 . . Recyclers Shooed 3 | . 1 . 2 . . Parts Field Recycled . | . . . . . . Retrieved Matter . | . . . . . . Parts Self-Destructed . | . . . . . . Prevented . | . . . . . . Parts Restored . | . . . . . . Kills | -11 -10 -10 -9 -9 -9 ------- Run | Yrd Mat Min Mat Min Exi Combat Hostiles Destroyed 38 | . 5 8 19 . 6 Guns 21 | . 4 5 9 . 3 AOE 17 | . 1 3 10 . 3 Classes Destroyed 9 | . 2 4 3 . . Worker 2 | . . 1 1 . . Builder 1 | . . . 1 . . Hauler 1 | . . . 1 . . Recycler 4 | . . 2 2 . . Watcher 2 | . 1 . 1 . . Swarmer 11 | . . 3 8 . . Grunt 12 | . 5 . 7 . . Sentry 4 | . . . 4 . . Assembled 10 | . . 5 . . 5 Best Kill Streak 6 | . 5 3 6 . 5 Combat Bots Only 5 | . 4 3 5 . 5 Max Kills in Single Turn 3 | . 2 2 3 . 2 Gunslinging . | . . . . . . Exploded 3 | . 1 2 3 . 2 Melee . | . . . . . . Uniques/NPCs Destroyed 1 | . . . . . 1 8R-AWN (-9/Exiles) Combat | -11 -10 -10 -9 -9 -9 -------- Run | Yrd Mat Min Mat Min Exi Hostile Shots Fired 244 | . 30 34 60 . 120 Missed 65 | . 10 12 17 . 26 Hits 179 | . 20 22 43 . 94 Melee 12 | . . 9 . . 3 Projectile 167 | . 20 13 43 . 91 Critical Strikes 40 | . 1 . 3 . 36 Damage Taken 3184 | . 362 425 569 . 1828 Core 560 | . 48 106 137 . 269 Absorbed by Shields . | . . . . . . Core Remaining (%) 69 | 100 . 38 . . . Volleys Fired 166 | 1 28 28 42 . 67 Largest 2 | 2 2 2 2 . 2 Hottest 130 | 90 90 90 130 . 130 Shots Fired 281 | 2 45 52 64 . 118 Gun 263 | 2 45 49 57 . 110 Cannon . | . . . . . . Launcher 18 | . . 3 7 . 8 Special . | . . . . . . Kinetic 93 | . . . 3 . 90 Thermal 144 | 1 38 32 53 . 20 Explosive 18 | . . 3 7 . 8 Electromagnetic 26 | 1 7 17 1 . . Robot Hit Streak 16 | . 7 6 16 . 15 Robot Miss Streak 6 | . 5 2 6 . 6 Penetration Max . | . . . . . . Secondary Targets 3 | . . 3 . . . Max Gunslinging Chain 1 | . . 1 . . . Shots Hit Robots 202 | . 28 33 57 . 84 Core Hits 149 | . 11 19 80 . 39 Critical Kills . | . . . . . . Critical Parts Destroyed . | . . . . . . Critical Strikes 2 | . 1 1 . . . Burn 2 | . 1 1 . . . Melee Attacks . | . . . . . . Impact . | . . . . . . Slashing . | . . . . . . Piercing . | . . . . . . Sneak Attacks . | . . . . . . Combat Hostiles . | . . . . . . Follow-up Attacks . | . . . . . . Damage Inflicted 4508 | . 702 574 1717 . 1515 Guns 2975 | . 375 389 833 . 1378 Cannons . | . . . . . . Explosions 1533 | . 327 185 884 . 137 Melee . | . . . . . . Ramming . | . . . . . . Kinetic 1112 | . . . 52 . 1060 Thermal 1963 | . 620 259 766 . 318 Explosive 1206 | . . 185 884 . 137 Electromagnetic 227 | . 82 130 15 . . Impact . | . . . . . . Slashing . | . . . . . . Piercing . | . . . . . . Highest Corruption 5 | . . 3 . . 5 Average Corruption 3 | . . 3 . . 5 Corruption Purged . | . . . . . . Corruption Blocked . | . . . . . . Effects 23 | . . 14 . . 9 Message Errors 6 | . . 2 . . 4 Matter Fused 7 | . . 5 . . 2 Heat Flow Errors 2 | . . 2 . . . Energy Discharges 2 | . . 1 . . 1 Data Loss (minor) 3 | . . 3 . . . Data Loss (major) 1 | . . 1 . . . Misfires 1 | . . . . . 1 Weapon Failures 1 | . . . . . 1 Overload Shots . | . . . . . . Overflow Damage 133 | . 75 . 58 . . Projectiles . | . . . . . . Explosions 133 | . 75 . 58 . . Melee . | . . . . . . Knockbacks . | . . . . . . Impact . | . . . . . . Kinetic . | . . . . . . Secondary . | . . . . . . Self-Inflicted Damage 120 | . 83 6 8 . 23 Shots 4 | . 1 1 1 . 1 Rammed . | . . . . . . Targets Rammed . | . . . . . . Kicked . | . . . . . . Crushed . | . . . . . . Highest Temperature 222 | 30 222 190 90 . 198 Average Temperature 62 | 18 116 86 24 . 73 Received Heat Transfer 387 | . 156 . 231 . . Effects 2 | . 2 . . . . Interference 2 | . 2 . . . . Siege Activations . | . . . . . . Martial Activations . | . . . . . . Shielding Activations . | . . . . . . Robots Disrupted . | . . . . . . Combat Hostiles . | . . . . . . Robots Corrupted . | . . . . . . Combat Hostiles . | . . . . . . Parts Fried . | . . . . . . Impact Corruptions . | . . . . . . Robots Melted . | . . . . . . Combat Hostiles . | . . . . . . Parts Melted 1 | . 1 . . . . Heat Transferred 2888 | . 1055 696 940 . 197 Parts Sabotaged . | . . . . . . Parts Stolen . | . . . . . . Parts Stripped . | . . . . . . Power Chain Reactions 1 | . 1 . . . . Alert | -11 -10 -10 -9 -9 -9 ------- Run | Yrd Mat Min Mat Min Exi Maximum Alert Level 1 | . . . 1 . . Low Security (%) 95 | 100 100 100 84 100 . Level 1 4 | . . . 15 . . Level 2 . | . . . . . . Level 3 . | . . . . . . Level 4 . | . . . . . . Level 5 . | . . . . . . High Security . | . . . . . . Max Security . | . . . . . . Peak Influence 291 | . 133 99 291 109 . Initial 109 | . . . . 109 . Average 42 | . 28 12 91 99 . Influence Increases 875 | . 173 114 588 . . Destroy 0b10 Robot/C 560 | . 100 60 400 . . Destroy 0b10 Robot/NC 50 | . 5 15 30 . . Destroy Leader 116 | . 12 10 94 . . Allied During Kill 2 | . . . 2 . . Disable Machine 75 | . 30 15 30 . . Destroy Structure 72 | . 26 14 32 . . Influence Decreases 875 | . 173 114 308 191 89 Entered New Map 260 | . . . . 171 89 Time Decay 565 | . 163 114 268 20 . Lost Part 30 | . 10 . 20 . . Lost Ally 20 | . . . 20 . . Squads Dispatched 2 | . . . 1 1 . Investigation . | . . . . . . Extermination . | . . . . . . Reinforcement 1 | . . . 1 . . Assault 1 | . . . . 1 . Garrison . | . . . . . . Intercept . | . . . . . . Searches Triggered . | . . . . . . Construction Impeded . | . . . . . . Haulers Reinforced . | . . . . . . Active Scanning Responses . | . . . . . . Cargo Convoy Interrupts . | . . . . . . Stealth | -11 -10 -10 -9 -9 -9 --------- Run | Yrd Mat Min Mat Min Exi Distress Signals 4 | . 1 1 2 . . Communications Jammed . | . . . . . . Distress Signals . | . . . . . . Times Spotted 54 | . 8 9 30 . 7 Peak Tracking Total 9 | . 4 3 7 . 9 Tactical Retreats . | . . . . . . Traps | -11 -10 -10 -9 -9 -9 ------- Run | Yrd Mat Min Mat Min Exi Traps Triggered 1 | . 1 . . . . Indirectly . | . . . . . . Trap Hack Attempts . | . . . . . . Triggered . | . . . . . . Disarmed . | . . . . . . Reprogrammed . | . . . . . . Reused . | . . . . . . Traps Extracted . | . . . . . . Installed . | . . . . . . Triggered . | . . . . . . Machines | -11 -10 -10 -9 -9 -9 ---------- Run | Yrd Mat Min Mat Min Exi Machines Disabled 14 | . 2 1 2 . 9 Max in Single Turn 3 | . 2 1 1 . 3 Machines Repaired . | . . . . . . Machines Dismantled . | . . . . . . Machines Sabotaged . | . . . . . . Overloaded Fab Kills . | . . . . . . Hacking | -11 -10 -10 -9 -9 -9 --------- Run | Yrd Mat Min Mat Min Exi Machines Accessed 2 | . . . . . 2 Terminals . | . . . . . . Fabricators . | . . . . . . Repair Stations . | . . . . . . Recycling Units . | . . . . . . Scanalyzers . | . . . . . . Garrison Access . | . . . . . . Total Hacks 2 | . . . . . 2 Successful 2 | . . . . . 2 Failed . | . . . . . . Catastrophic . | . . . . . . Database Lockouts . | . . . . . . Manual 1 | . . . . . 1 Terminals . | . . . . . . Fabricators . | . . . . . . Repair Stations . | . . . . . . Recycling Units . | . . . . . . Scanalyzers . | . . . . . . Garrison Access . | . . . . . . Terminal Hacks 2 | . . . . . 2 Record 1 | . . . . . 1 Proto ID Catalog 1 | . . . . . 1 Fabricator Hacks . | . . . . . . Repair Station Hacks . | . . . . . . Recycling Unit Hacks . | . . . . . . Scanalyzer . | . . . . . . Garrison Access Hacks . | . . . . . . Unauthorized Hacks . | . . . . . . Terminals . | . . . . . . Fabricators . | . . . . . . Repair Stations . | . . . . . . Recycling Units . | . . . . . . Scanalyzers . | . . . . . . Garrison Access . | . . . . . . Data Cores Recovered . | . . . . . . Used . | . . . . . . Hacking Detections . | . . . . . . Full Trace Events . | . . . . . . Feedback Events . | . . . . . . Feedback Blocked . | . . . . . . Robot Schematics Acquired . | . . . . . . Robots Built . | . . . . . . Authchips . | . . . . . . Time . | . . . . . . Total Robot Build Rating . | . . . . . . Part Schematics Acquired . | . . . . . . Parts Built . | . . . . . . Authchips . | . . . . . . Time . | . . . . . . Total Part Build Rating . | . . . . . . Part Studies Acquired . | . . . . . . Parts Repaired . | . . . . . . Time . | . . . . . . Parts Recycled . | . . . . . . Recycled Matter . | . . . . . . Retrieved Matter . | . . . . . . Retrieved Components . | . . . . . . Parts Scanalyzed . | . . . . . . Part Schematics Acquired . | . . . . . . Parts Damaged . | . . . . . . Bothacking | -11 -10 -10 -9 -9 -9 ------------ Run | Yrd Mat Min Mat Min Exi Used RIF Installer . | . . . . . . Robots Hacked . | . . . . . . Non-combat . | . . . . . . Combat . | . . . . . . Robot Hacks Applied . | . . . . . . Relay Couplers Released . | . . . . . . Fabnet Peak Effective % . | . . . . . . Robots Rewired . | . . . . . . Allies Hacked . | . . . . . . Hacks Repelled . | . . . . . . Allies | -11 -10 -10 -9 -9 -9 -------- Run | Yrd Mat Min Mat Min Exi Total Allies 3 | . . 2 . 1 . Largest Group 2 | . . 2 1 1 1 Highest-Rated Group 47 | . . 47 31 31 31 Highest-Rated Ally 31 | . . 31 31 31 31 Total Orders . | . . . . . . Ally Attacks 11 | . . . 6 . 5 Total Damage 123 | . . . 61 . 62 Kills 1 | . . . 1 . . Allies Corrupted . | . . . . . . Allies Melted . | . . . . . . Intel | -11 -10 -10 -9 -9 -9 ------- Run | Yrd Mat Min Mat Min Exi Active Infowar (turns) . | . . . . . . Robot Analysis Total . | . . . . . . Derelict Logs Recovered 1 | . . 1 . . . Drone Launches . | . . . . . . Drone Recoveries . | . . . . . . Exploration | -11 -10 -10 -9 -9 -9 ------------- Run | Yrd Mat Min Mat Min Exi Turns Passed 3718 | 98 674 1139 896 55 856 Spaces Moved 1809 | 54 311 565 430 35 414 Core 2 | 2 . . . . . Treads 1195 | 52 311 20 363 35 414 Legs . | . . . . . . Wheels 612 | . . 545 67 . . Hover . | . . . . . . Flight . | . . . . . . Fastest Speed 50 | 50 160 130 145 160 160 Average Speed 161 | 155 191 143 166 160 160 Slowest Speed 320 | 160 320 320 320 160 160 Overloaded Moves . | . . . . . . Propulsion Burnouts . | . . . . . . Robots Hopped . | . . . . . . Potential Cave-ins . | . . . . . . Cave-ins Triggered . | . . . . . . Exploration Rate (%) 45 | 5 54 91 47 9 68 Regions Visited 5 Branch Regions 3 Pre-discovered Areas 2 | . . 1 . . 1 Known Exits Taken . | . . . . . . Unknown Exits Taken 5 | 1 1 1 1 1 . Scrap Searched 1 | . . 1 . . . Spaces Dug . | . . . . . . Terrain Destroyed 163 | . 38 22 46 . 57 Melee . | . . . . . . Projectile 1 | . . . . . 1 AOE 162 | . 38 22 46 . 56 Terrain Rammed . | . . . . . . Walls Destroyed . | . . . . . . Machines Disabled . | . . . . . . Actions | -11 -10 -10 -9 -9 -9 --------- Run | Yrd Mat Min Mat Min Exi Total 2352 | 63 345 837 544 34 529 Wait 276 | . . 237 20 . 19 Move 1804 | 53 310 564 429 34 414 Hop . | . . . . . . Pick Up 36 | 3 2 2 23 . 6 Fast Attach 14 | 6 1 2 5 . . Attach 15 | . 1 2 3 . 9 Detach 2 | . . . 1 . 1 Swap 21 | . 3 2 11 . 5 Drop 18 | . . . 10 . 8 Fire 166 | 1 28 28 42 . 67 Melee . | . . . . . . Ram . | . . . . . . Kick . | . . . . . . Crush . | . . . . . . Escape Stasis . | . . . . . . Rewire . | . . . . . . Trap . | . . . . . . Miscellaneous . | . . . . . . Route ------- -11/Scrapyard -10/Materials (discovered 3 exits: [*Mat x2] / [*Min]) -10/Mines (discovered 3 exits: [*Mat x2] / [*Sub]) -9/Materials (discovered 4 exits: Mat x3 / [*Min]) -9/Mines -9/Exiles History --------- Turn | Location | Event 9 | -11/Scrapyard | Discovered new exit (range 15) 99 | -11/Scrapyard | Entered Materials 236 | -10/Materials | Discovered new exit (range 16) 306 | -10/Materials | Build established: Mutant 426 | -10/Materials | Discovered new exit (range 15) 713 | -10/Materials | Discovered new exit (range 8) 773 | -10/Materials | Entered Mines 774 | -10/Mines | Learned location of Storage (-8) 774 | -10/Mines | Assembled infested the area 779 | -10/Mines | Assisted by a Guerilla fighting off Assembled 1094 | -10/Mines | Received a Rocket Launcher from a helpful Derelict 1111 | -10/Mines | Core integrity fell below 50% 1452 | -10/Mines | Discovered new exit (range 3) 1621 | -10/Mines | Learned 4 Materials zone layouts 1890 | -10/Mines | Discovered new exit (range 6) 1900 | -10/Mines | Discovered new exit (range 10) 1912 | -10/Mines | Entered Materials 1912 | -9/Materials | Accompanied by 1 ally 1912 | -9/Materials | Evolved 2 slots: Propulsion x1, Utility x1 1913 | -9/Materials | Identified exit to Materials 1917 | -9/Materials | Led the pair of lost Derelicts to an unsafe place 2762 | -9/Materials | Discovered new exit (range 16) 2808 | -9/Materials | Entered Mines 2809 | -9/Mines | Met a Derelict testing a Signal Generator 2855 | -9/Mines | Deemed a non-threat by the Exiles lab entrance 2855 | -9/Mines | Discovered new exit (range 5) 2863 | -9/Mines | Entered Exiles 2863 | -9/Exiles | Accompanied by 1 ally 2913 | -9/Exiles | Met 8R-AWN 2939 | -9/Exiles | Met EX-HEX 2988 | -9/Exiles | Met EX-BIN 3011 | -9/Exiles | Aligned with FarCom system 3012 | -9/Exiles | Given EX-Vault access code 3051 | -9/Exiles | Opened EX-Vault 3091 | -9/Exiles | Warned to stay clear of 0b10 Research branches 3137 | -9/Exiles | Met EX-DEC 3147 | -9/Exiles | Learned location of Zion (-7) 3434 | -9/Exiles | Attacked by the Exiles 3488 | -9/Exiles | Core integrity fell below 50% 3518 | -9/Exiles | Lost 4 parts (1p2u1w) 3617 | -9/Exiles | Lost 5 parts (4n1u) 3635 | -9/Exiles | Core integrity fell below 20% 3650 | -9/Exiles | Destroyed 8R-AWN 3719 | -9/Exiles | Destroyed by DAS Turret with DAS Cannon Last Messages --------------- 03621_ Penetrated by HV Slug. 03621_ HV Slug penetrates Wall. 03621_ Acquired 24 matter. 03625_ Penetrated by HV Slug. 03625_ Critical hit (Destroy). 03625_ Imp. Treads destroyed. 03625_ HV Slug penetrates Wall. 03629_ Penetrated by HV Slug. 03629_ HV Slug penetrates Wall. 03629_ Penetrated by HV Slug. 03629_ HV Slug penetrates Wall. 03634_ Penetrated by HV Slug. 03634_ HV Slug penetrates Wall. 03634_ Penetrated by HV Slug. 03646_ HV Slug penetrates Wall. 03649_ System corrupted: Energy discharge (-4). 03650_ 8R-AWN destroyed. 03654_ Acquired 58 matter. 03672_ System corrupted: Matter fused (-9). 03715_ Imp. Treads destroyed. Map ----- +----------------------------------------------------+ | #""#?????# #??????????????????????#" | | ?????# ##??????????????????????#" | | ##???# #????????#######???????#" | | ##### #???????# """#???????#" | | ##" # ?????????#"" """#???????## | | #" # ?????????#"" #????????# | | ?# # #???????#"" #????????#" | | ??### = ######???????#"" "#????????#" | | ????# = #?###??????# ""#????????#" | | ##### ## ##?????#"" ""#???????##" | | !! #?????### ###??????##"" | | # ######???### ###?######"" | | ""#####X# #"###""""""" | | # """""" " "" | | # ###"# "" """ " | | "#""""#" ##?###" " " | | ######????#### | | # ##?????????????### | | ?????????????????## | | #???????????????????# | | #????????????????????### | | ??????????????????????# % """""" | | ??????????????????????# ######"" | | ??????????????????????# ""##????### | | ?????????????????????## " % """##???????? | | ?????????????????????#"""@ """##????????? | | ?????????????????????#""" % ""#?????????? | | ?????????????????????#"" ########???# | | ?????????????????????#""" ## ####" | | ?????????????????????#"" t """" | | ?????????????????????##"" | | ??????????????????????#"""" | | ??????????????????????## | | ???????????????????????#" " | | ???????????????????????#"""" ""## # | | ????????????????????????"" ""#### # | | ????????????????????????" """"##??# # | | ????????????????????????""" """#??## # | | ????????????????????????# ""##??# | | ????????????????????????#"" """##???#" | | ?????????????????????????#""" #?????#" | | ??????????????????????????#"""" ##?????#!!"" | | ???????????????????????????## #??????##### | | ?????????????????????????????#### ##??????????? | | ????????????????????????????????## ????????????? | | ?????????????????????????????????# ????????????? | | ?????????????????????????????????? ????????????? | | ?????????????????????????????????????????????????? | | ?????????????????????????????????????????????????? | | ?????????????????????????????????????????????????? | +----------------------------------------------------+ Best States ------------- Heat Dissipation 42 Energy Generation 14 Energy Capacity 250 Matter Stores 300 Matter Capacity 300 Sight Range 16 Terrain Scan Density 10 Armor Coverage 150 Evasion (%) 40 Targeting Accuracy 6 Recoil Reduction 3 Item Schematics ----------------- None Robot Schematics ------------------ None Fabricated ------------ Nothing Repaired ---------- Nothing Studied --------- None Alien Tech Used ----------------- None Achievements -------------- None Challenges ------------ None Game ------ Seed SurgeBottomlessRailgun Manual? 0 Play Time 00:19:57 Cumulative 477.5 hours Start 2026.04.18 @ 02:54:56 End 2026.04.18 @ 14:57:37 Sessions 1 Manual Loads 0 Difficulty Rogue Special Mode None Game No. 411 Rogue 375 Adventurer 36 Explorer 0 Win Type - Total 20 Types 9/0/11/0/0/0/0/0/0/0 Lore% 73 Gallery% 84 Achievement% 68 Wizard Run 0 Options --------- Layout 0 ASCII 0 Keyboard 0 Movement Mouse Keybinds 0 Fullscreen 1 Font 18/SmallcapsGlow Map View 76x50 Zoom Use 0% Tactical HUD 1 Map Filters NONE Filters NONE Steam 1 RUN: ec5f28eb-9e67-4477-a86e-85c6c264d2bb